bitfinex/quotes_SOLUSD_20240603
["timestamp","ask_amount","ask_price","bid_price","bid_amount"]
[1717383046126,12.7325,164.3,164.25,2.2526]
[1717383047455,12.7325,164.3,164.24,2.2527]
[1717383047841,2.2521,164.29,164.24,2.2527]
[1717383049044,8.7701,164.29,164.24,2.2527]
[1717383049250,13.0201,164.29,164.24,2.2527]
[1717383050544,13.0201,164.29,164.23,2.2528]
[1717383052336,13.0201,164.29,164.24,2.2527]
[1717383052958,8.7701,164.29,164.24,2.2527]
[1717383053257,13.0201,164.29,164.24,2.2527]
[1717383056472,8.7701,164.29,164.24,2.2527]
[1717383056640,13.0201,164.29,164.24,2.2527]
[1717383059257,6.1451,164.28,164.24,2.2527]
[1717383059871,10.3951,164.28,164.24,2.2527]
[1717383060775,6.1451,164.28,164.24,2.2527]
[1717383061162,6.4213,164.26,164.22,8.341]
[1717383061472,12.9239,164.25,164.2,11.39261883]
[1717383061770,12.9239,164.25,164.21,2.89042592]
[1717383062091,12.9239,164.25,164.2,11.39261883]
[1717383062597,6.4213,164.25,164.21,2.2532]
[1717383062793,4.25,164.24,164.21,2.2532]
[1717383062953,10.6713,164.25,164.21,2.2532]
[1717383063355,6.4213,164.25,164.21,2.2532]
[1717383063658,10.6713,164.25,164.21,2.2532]
[1717383064464,6.4213,164.25,164.21,2.2532]
[1717383064666,10.6713,164.25,164.21,2.2532]
[1717383068291,6.4213,164.25,164.21,2.2532]
[1717383068591,6.4186,164.24,164.21,2.2532]
[1717383068789,10.6686,164.24,164.21,2.2532]
[1717383068973,10.6686,164.24,164.2,2.2533]
[1717383071891,10.6686,164.24,164.18,4.25]
[1717383072065,6.6219,164.28,164.22,64.25]
[1717383072269,6.6219,164.28,164.24,2.2527]
[1717383072497,6.6219,164.28,164.25,2.2526]
[1717383073185,6.6219,164.28,164.24,2.2527]
[1717383073489,4.25,164.29,164.24,2.2527]
[1717383074386,12.7877,164.29,164.24,2.2527]
[1717383074891,10.5356,164.28,164.24,2.2527]
[1717383075091,10.5356,164.28,164.23,2.2528]
[1717383077788,6.2856,164.28,164.24,2.2527]
[1717383080304,6.2856,164.28,164.23,2.2528]
[1717383080903,10.5356,164.28,164.23,2.2528]
[1717383081598,12.7878,164.28,164.23,2.2528]
[1717383081779,10.5356,164.28,164.23,2.2528]
[1717383081978,6.2856,164.28,164.23,2.2528]
[1717383083500,10.5356,164.28,164.23,2.2528]
[1717383084983,6.2856,164.28,164.23,2.2528]
[1717383088605,8.5378,164.28,164.23,2.2528]
[1717383088992,6.2856,164.28,164.23,2.2528]
[1717383092403,8.5378,164.28,164.23,2.2528]
[1717383092606,6.2856,164.28,164.23,2.2528]
[1717383096212,6.2856,164.28,164.23,62.2528]
[1717383096404,6.2856,164.28,164.23,66.5028]
[1717383097708,6.2856,164.28,164.24,2.2527]
[1717383098993,6.2856,164.28,164.23,66.5028]
[1717383099208,8.6803,164.27,164.22,9.1382663]
[1717383099414,8.6803,164.27,164.22,2.2529]
[1717383099911,8.6803,164.27,164.22,11.3911663]
[1717383100120,8.6803,164.27,164.23,2.89026487]
[1717383100902,6.4279,164.27,164.23,2.89026487]
[1717383101702,6.4279,164.27,164.23,5.14316487]
[1717383102029,4.25,164.3,164.24,7.14005819]
[1717383102201,8.68,164.29,164.23,66.5028]
[1717383102401,12.93,164.29,164.23,66.5028]
[1717383102716,8.68,164.29,164.23,66.5028]
[1717383102891,12.93,164.29,164.23,75.6410663]
[1717383103093,12.93,164.29,164.24,2.89002623]
[1717383103528,8.68,164.29,164.24,2.89002623]
[1717383103725,12.93,164.29,164.24,2.89002623]
[1717383104016,12.93,164.29,164.23,75.6410663]
[1717383104496,2.2522,164.28,164.23,66.5028]
[1717383104702,2.2522,164.28,164.23,62.2528]
[1717383105017,2.2522,164.28,164.24,2.89005976]
[1717383106924,6.4279,164.29,164.24,2.89005976]
[1717383107417,10.6779,164.29,164.24,2.89005976]
[1717383107715,4.5031,164.33,164.26,6.5024]
[1717383107716,6.5017,164.32,164.26,6.5024]
[1717383107907,4.25,164.32,164.27,65.1417588]
[1717383108114,8.6606,164.33,164.27,66.5023]
[1717383108616,8.6606,164.33,164.26,9.13821544]
[1717383108617,6.409,164.33,164.29,66.089]
[1717383108996,6.409,164.33,164.27,66.5022]
[1717383109325,12.9106,164.33,164.27,66.5022]
[1717383111233,4.25,164.3,164.26,2.2524]
[1717383111426,10.2526,164.3,164.26,2.2524]
[1717383111809,2.2513,164.35,164.29,62.252]
[1717383112029,22.3387,164.38,164.29,66.089]
[1717383112212,12.5039,164.35,164.29,8.341]
[1717383112415,4.25,164.34,164.29,8.341]
[1717383112624,4.25,164.34,164.29,68.341]
[1717383115226,12.5039,164.35,164.3,2.2519]
[1717383115637,12.5039,164.35,164.3,8.3409]
[1717383116133,6.0026,164.35,164.3,8.3409]
[1717383116435,6.0026,164.35,164.31,62.2517]
[1717383116812,6.0026,164.35,164.31,60.0]
[1717383117160,8.2539,164.35,164.3,12.5909]
[1717383117334,12.5039,164.35,164.3,8.3409]
[1717383117648,8.2539,164.35,164.3,8.3409]
[1717383117827,12.5039,164.35,164.3,8.3409]
[1717383119639,10.2526,164.35,164.3,8.3409]
[1717383119837,6.0026,164.35,164.3,12.5909]
[1717383120144,6.0026,164.35,164.3,8.3409]
[1717383120537,6.0026,164.35,164.31,60.0]
[1717383123444,8.2539,164.35,164.31,60.0]
[1717383124124,6.0026,164.35,164.31,60.0]
[1717383129965,6.0026,164.35,164.29,66.089]
[1717383130162,6.0026,164.35,164.29,70.339]
[1717383132446,2.251,164.37,164.31,60.0]
[1717383132667,10.4592,164.36,164.31,60.0]
[1717383133079,12.7103,164.36,164.31,60.0]
[1717383134086,12.7103,164.36,164.29,106.859]
[1717383134582,12.7103,164.36,164.29,102.609]
[1717383134770,12.7103,164.36,164.29,106.859]
[1717383136796,6.5013,164.35,164.29,66.089]
[1717383136974,6.127,164.33,164.29,6.089]
[1717383137287,6.127,164.33,164.28,6.089]
[1717383137288,6.127,164.32,164.28,6.089]
[1717383137661,6.127,164.32,164.25,60.0]
[1717383137662,4.25,164.32,164.25,60.0]
[1717383137870,6.0604,164.31,164.28,2.2521]
[1717383139799,6.0604,164.31,164.24,61.40595908]
[1717383139800,15.8133,164.31,164.24,4.87595908]
[1717383139971,10.3583,164.29,164.25,60.0]
[1717383140288,6.1083,164.29,164.26,2.2524]
[1717383141278,10.2586,164.31,164.27,2.2523]
[1717383141481,25.9534,164.33,164.28,8.3412]
[1717383141694,6.0086,164.32,164.28,8.3412]
[1717383142012,6.0086,164.32,164.29,8.10995584]
[1717383142163,6.0086,164.32,164.28,2.2522]
[1717383142366,6.0086,164.32,164.29,6.089]
[1717383142859,6.0086,164.32,164.28,2.2522]
[1717383143493,6.0086,164.32,164.27,66.5023]
[1717383144393,6.0086,164.32,164.28,2.2522]
[1717383144897,6.0086,164.32,164.28,6.5022]
[1717383145391,6.0086,164.32,164.28,2.2522]
[1717383147491,10.2586,164.32,164.27,60.0]
[1717383147697,10.2586,164.32,164.27,62.2522]
[1717383147903,6.0086,164.32,164.27,64.25]
[1717383148403,6.0086,164.32,164.28,2.2521]
[1717383150495,6.1487,164.34,164.29,68.341]
[1717383151329,6.1487,164.34,164.3,2.2519]
[1717383151685,6.1487,164.34,164.3,8.3409]
[1717383154219,6.1487,164.34,164.31,60.0]
[1717383154521,6.5013,164.35,164.31,60.0]
[1717383155398,2.2513,164.35,164.31,60.0]
[1717383155925,6.5011,164.36,164.31,62.2518]
[1717383156312,12.8486,164.36,164.31,60.0]
[1717383158118,8.5986,164.36,164.31,60.0]
[1717383158321,12.8486,164.36,164.31,60.0]
[1717383159503,8.5986,164.36,164.31,60.0]
[1717383159701,12.8486,164.36,164.31,60.0]
[1717383160322,4.25,164.35,164.31,60.0]
[1717383161020,10.5975,164.36,164.31,60.0]
[1717383161324,6.3475,164.36,164.31,60.0]
[1717383161532,10.5975,164.36,164.31,60.0]
[1717383163137,6.3475,164.36,164.31,60.0]
[1717383163351,10.5975,164.36,164.31,60.0]
[1717383163813,4.25,164.36,164.31,60.0]
[1717383164014,2.251,164.37,164.31,60.0]
[1717383164208,4.25,164.36,164.31,60.0]
[1717383165737,6.5011,164.36,164.31,60.0]
[1717383165936,4.25,164.36,164.31,60.0]
[1717383166137,2.2509,164.38,164.33,60.0]
[1717383166311,6.5009,164.38,164.33,60.0]
[1717383166510,6.1183,164.4,164.33,60.0]
[1717383167004,4.25,164.38,164.33,60.0]
[1717383167619,4.25,164.39,164.33,60.0]
[1717383167823,6.5007,164.39,164.33,60.0]
[1717383170330,2.2507,164.39,164.33,60.0]
[1717383170668,6.5007,164.39,164.33,60.0]
[1717383170941,2.2507,164.39,164.33,60.0]
[1717383171145,6.5007,164.39,164.33,60.0]
[1717383172012,4.25,164.39,164.35,60.0]
[1717383172214,6.5006,164.4,164.35,60.0]
[1717383172414,6.5006,164.4,164.35,66.089]
[1717383172845,6.5006,164.4,164.35,60.0]
[1717383173337,4.25,164.39,164.35,60.0]
[1717383174746,2.2506,164.4,164.35,60.0]
[1717383174932,2.2506,164.4,164.35,66.089]
[1717383175132,6.5006,164.4,164.35,66.089]
[1717383175333,6.5006,164.4,164.35,60.0]
[1717383176748,4.25,164.4,164.35,60.0]
[1717383176940,4.25,164.4,164.37,60.0]
[1717383177120,6.5005,164.41,164.37,60.0]
[1717383177741,6.5005,164.41,164.38,6.089]
[1717383178325,2.2505,164.41,164.37,60.0]
[1717383178545,4.25,164.4,164.37,60.0]
[1717383179131,6.5006,164.4,164.37,60.0]
[1717383179739,6.5006,164.4,164.35,60.0]
[1717383179947,4.25,164.4,164.35,60.0]
[1717383184046,2.2504,164.41,164.35,60.0]
[1717383184350,2.2503,164.42,164.37,60.0]
[1717383184650,2.2503,164.42,164.38,6.089]
[1717383184850,4.25,164.41,164.38,6.089]
[1717383185261,4.25,164.4,164.37,60.0]
[1717383186344,6.5006,164.4,164.34,60.0]
[1717383186563,6.5007,164.39,164.35,6.089]
[1717383186861,4.25,164.38,164.32,96.53]
[1717383187237,4.25,164.38,164.33,6.089]
[1717383193165,2.2506,164.4,164.33,6.089]
[1717383193346,4.25,164.38,164.33,6.089]
[1717383194065,4.25,164.38,164.32,60.0]
[1717383194367,4.25,164.37,164.32,66.089]
[1717383194567,4.25,164.37,164.32,60.0]
[1717383196167,4.25,164.37,164.32,66.089]
[1717383196547,4.25,164.37,164.32,60.0]
[1717383197346,4.25,164.37,164.32,66.089]
[1717383199777,4.25,164.38,164.32,66.089]
[1717383201177,16.6334,164.41,164.32,66.089]
[1717383201178,2.2506,164.4,164.35,60.0]
[1717383201355,4.25,164.39,164.35,60.0]
[1717383204159,6.5007,164.39,164.35,60.0]
[1717383205468,2.2509,164.38,164.35,60.0]
[1717383205864,6.5008,164.39,164.35,60.0]
[1717383207976,2.2508,164.39,164.35,60.0]
[1717383208180,6.5008,164.39,164.35,60.0]
[1717383208677,2.2508,164.39,164.35,60.0]
[1717383210299,2.2509,164.38,164.35,60.0]
[1717383213872,6.5008,164.39,164.35,60.0]
[1717383214371,6.5008,164.39,164.33,40.78]
[1717383214569,6.5008,164.39,164.36,60.0]
[1717383215287,2.2509,164.38,164.34,60.0]
[1717383215603,2.2509,164.38,164.32,75.22217348]
[1717383215604,4.25,164.37,164.32,75.22217348]
[1717383215883,4.25,164.37,164.32,66.089]
[1717383216897,12.6724,164.38,164.32,66.089]
[1717383217398,8.4224,164.38,164.32,66.089]
[1717383217592,12.6724,164.38,164.32,66.089]
[1717383224171,8.4224,164.38,164.32,66.089]
[1717383224386,12.6724,164.38,164.32,66.089]
[1717383225872,6.1715,164.38,164.32,70.339]
[1717383226487,6.1715,164.38,164.32,66.089]
[1717383226689,6.1715,164.38,164.32,70.339]
[1717383227476,6.1715,164.38,164.32,66.089]
[1717383227675,6.1715,164.38,164.32,70.339]
[1717383227989,6.1715,164.38,164.35,60.0]
[1717383228292,6.5007,164.39,164.35,60.0]
[1717383228499,2.2507,164.39,164.35,60.0]
[1717383236097,4.25,164.4,164.35,60.0]
[1717383236299,2.2508,164.38,164.35,60.0]
[1717383238125,12.6607,164.39,164.35,60.0]
[1717383240312,2.2509,164.38,164.33,66.089]
[1717383243384,2.2509,164.38,164.33,60.0]
[1717383243385,10.5632,164.37,164.33,60.0]
[1717383244297,10.5632,164.37,164.33,66.089]
[1717383244492,10.5632,164.37,164.33,60.0]
[1717383245325,6.3132,164.37,164.33,66.089]
[1717383249319,19.6937,164.37,164.31,69.13392249]
[1717383249489,19.6937,164.37,164.31,79.47292249]
[1717383249822,19.6937,164.37,164.31,70.339]
[1717383250291,19.6937,164.37,164.31,66.089]
[1717383250492,19.6937,164.37,164.31,70.339]
[1717383250991,26.0137,164.37,164.32,8.97644623]
[1717383251308,26.0137,164.37,164.32,6.089]
[1717383253313,10.57,164.37,164.32,6.089]
[1717383253521,6.32,164.37,164.32,6.089]
[1717383253988,10.5084,164.36,164.31,69.13392249]
[1717383254192,6.2584,164.36,164.31,69.13392249]
[1717383254501,6.2584,164.36,164.31,60.0]
[1717383254893,6.2584,164.36,164.3,79.47292249]
[1717383255093,6.2584,164.36,164.31,2.88759607]
[1717383255289,6.2584,164.36,164.3,79.47292249]
[1717383255497,6.2584,164.36,164.31,2.88759593]
[1717383255690,6.2584,164.36,164.3,79.47292249]
[1717383255991,6.2584,164.36,164.31,2.8875958]
[1717383256203,6.2584,164.36,164.31,6.089]
[1717383257420,6.2584,164.36,164.3,69.13462094]
[1717383257717,6.2584,164.36,164.31,8.97655195]
[1717383257913,6.2584,164.36,164.31,6.089]
[1717383259115,6.2584,164.36,164.3,73.38461579]
[1717383259310,6.501,164.37,164.31,2.88781916]
[1717383259511,8.3084,164.37,164.3,66.089]
[1717383259811,8.3084,164.37,164.29,9.13461579]
[1717383259812,6.0574,164.37,164.29,9.13461579]
[1717383259990,10.3074,164.31,164.28,9.13461579]
[1717383260193,10.3074,164.31,164.29,2.88808381]
[1717383260412,10.3074,164.31,164.28,9.13461579]
[1717383260600,10.3074,164.31,164.29,2.88818226]
[1717383260907,10.3074,164.31,164.27,13.85009853]
[1717383261125,10.3074,164.31,164.28,2.88822324]
[1717383261325,10.3074,164.31,164.27,4.71548274]
[1717383261326,4.25,164.31,164.27,4.71548274]
[1717383261496,6.0574,164.3,164.27,6.96778274]
[1717383261815,10.3074,164.3,164.27,6.96778274]
[1717383262017,6.0574,164.3,164.27,6.96778274]
[1717383262420,6.0574,164.3,164.27,13.05678274]
[1717383263127,6.0574,164.3,164.27,8.3413]
[1717383263310,10.3074,164.3,164.27,8.3413]
[1717383263617,10.3074,164.3,164.26,8.3414]
[1717383265217,6.0574,164.3,164.27,2.2523]
[1717383265410,10.3074,164.3,164.27,8.3413]
[1717383268646,10.3074,164.3,164.27,2.2523]
[1717383271133,17.6936,164.33,164.28,2.2522]
[1717383271322,10.6509,164.32,164.28,2.2522]
[1717383273303,6.4009,164.32,164.28,2.2522]
[1717383273504,10.6509,164.32,164.28,2.2522]
[1717383273804,4.25,164.32,164.27,62.2523]
[1717383274011,10.8506,164.32,164.27,62.2523]
[1717383275035,4.25,164.31,164.27,62.2523]
[1717383276323,10.8506,164.32,164.27,62.2523]
[1717383280950,13.1023,164.32,164.27,62.2523]
[1717383281126,10.8506,164.32,164.27,62.2523]
[1717383282147,6.6006,164.32,164.27,62.2523]
[1717383282442,10.8506,164.32,164.27,62.2523]
[1717383282867,2.2516,164.33,164.29,60.0]
[1717383283087,6.5016,164.33,164.29,60.0]
[1717383283668,4.25,164.32,164.27,66.5023]
[1717383283969,4.25,164.32,164.27,62.2523]
[1717383284781,6.5017,164.32,164.27,62.2523]
[1717383286341,4.25,164.32,164.27,62.2523]
[1717383287468,22.0025,164.3,164.25,4.25]
[1717383287673,4.25,164.32,164.21,6.089]
[1717383287674,22.0025,164.24,164.21,9.13659892]
[1717383287873,22.0025,164.24,164.19,60.0]
[1717383288077,22.0025,164.24,164.17,9.13659892]
[1717383288078,4.25,164.22,164.17,69.14032147]
[1717383288280,4.25,164.22,164.17,60.0]
[1717383288445,4.25,164.21,164.17,60.0]
[1717383288644,4.25,164.21,164.17,66.089]
[1717383289175,2.2529,164.23,164.17,60.0]
[1717383289469,4.25,164.22,164.19,60.0]
[1717383289851,4.25,164.21,164.19,60.0]
[1717383290055,4.25,164.21,164.17,60.0]
[1717383291569,6.1086,164.18,164.12,69.14175183]
[1717383291757,4.25,164.16,164.12,60.0]
[1717383292757,4.25,164.17,164.12,60.0]
[1717383293171,4.25,164.16,164.12,60.0]
[1717383293355,4.25,164.15,164.11,60.0]
[1717383293673,6.1086,164.18,164.13,60.0]
[1717383293856,4.25,164.17,164.13,60.0]
[1717383294504,4.25,164.17,164.12,6.089]
[1717383294505,6.0795,164.2,164.15,60.0]
[1717383294775,4.25,164.19,164.15,60.0]
[1717383294985,6.0795,164.2,164.15,60.0]
[1717383295176,4.25,164.19,164.15,60.0]
[1717383296052,4.25,164.18,164.13,66.089]
[1717383296769,10.3295,164.18,164.13,66.089]
[1717383296944,4.25,164.17,164.12,60.0]
[1717383297146,4.25,164.17,164.13,6.089]
[1717383297565,4.25,164.17,164.12,60.0]
[1717383299969,6.0795,164.18,164.14,60.0]
[1717383300181,10.3295,164.18,164.14,60.0]
[1717383303681,10.3295,164.18,164.12,66.089]
[1717383304081,10.3295,164.18,164.12,6.089]
[1717383304272,10.3295,164.18,164.12,66.089]
[1717383304474,4.25,164.17,164.12,66.089]
[1717383304870,6.0795,164.18,164.12,66.089]
[1717383305084,4.25,164.17,164.14,60.0]
[1717383305264,4.25,164.17,164.07,36.53]
[1717383305265,2.2532,164.21,164.16,60.0]
[1717383305485,10.4,164.2,164.16,60.0]
[1717383306004,12.6533,164.2,164.16,60.0]
[1717383306487,4.25,164.19,164.14,60.0]
[1717383312589,4.25,164.19,164.16,60.0]
[1717383314529,8.4033,164.2,164.16,60.0]
[1717383314692,4.25,164.19,164.16,60.0]
[1717383316192,6.5034,164.19,164.16,60.0]
[1717383317080,4.25,164.19,164.16,60.0]
[1717383318284,8.4034,164.2,164.16,60.0]
[1717383318896,4.25,164.19,164.16,60.0]
[1717383320611,8.4034,164.2,164.16,60.0]
[1717383320807,4.25,164.19,164.16,60.0]
[1717383321301,6.0336,164.19,164.16,60.0]
[1717383321475,10.2836,164.19,164.16,60.0]
[1717383321682,6.0336,164.19,164.16,60.0]
[1717383321881,10.2836,164.19,164.16,60.0]
[1717383322301,6.0336,164.19,164.16,60.0]
[1717383322491,6.0336,164.23,164.18,60.0]
[1717383322798,2.2528,164.24,164.2,60.0]
[1717383322989,6.0336,164.25,164.2,60.0]
[1717383323191,10.2836,164.25,164.2,60.0]
[1717383324402,2.2526,164.26,164.22,60.0]
[1717383325120,6.326,164.29,164.22,60.0]
[1717383325286,4.25,164.26,164.22,60.0]
[1717383326506,4.25,164.3,164.26,60.0]
[1717383330319,2.2519,164.31,164.26,60.0]
[1717383330513,4.25,164.3,164.26,60.0]
[1717383330895,8.5819,164.33,164.28,60.0]
[1717383331097,4.25,164.31,164.28,60.0]
[1717383331293,4.25,164.32,164.28,60.0]
[1717383333299,8.5819,164.33,164.28,60.0]
[1717383333929,4.25,164.32,164.28,60.0]
[1717383334107,2.2516,164.33,164.28,60.0]
[1717383334300,6.5016,164.33,164.28,60.0]
[1717383334615,2.2514,164.34,164.28,60.0]
[1717383334814,4.25,164.33,164.28,60.0]
[1717383335005,2.2515,164.33,164.28,60.0]
[1717383335211,6.5015,164.33,164.28,60.0]
[1717383336599,6.5015,164.33,164.3,60.0]
[1717383340712,6.3075,164.37,164.3,60.0]
[1717383340909,4.25,164.33,164.3,60.0]
[1717383342622,2.2512,164.35,164.3,60.0]
[1717383342796,6.5012,164.35,164.3,60.0]
[1717383343496,4.25,164.35,164.3,60.0]
[1717383343813,6.5013,164.35,164.3,60.0]
[1717383344125,6.5014,164.34,164.3,60.0]
[1717383344510,4.25,164.34,164.3,60.0]
[1717383344717,4.25,164.33,164.3,60.0]
[1717383345228,2.2512,164.36,164.3,60.0]
[1717383345717,4.25,164.35,164.3,60.0]
[1717383346027,6.5012,164.36,164.3,60.0]
[1717383346411,4.25,164.35,164.3,60.0]
[1717383347698,4.25,164.35,164.29,10.339]
[1717383347699,6.2465,164.41,164.32,64.25]
[1717383348005,2.2508,164.38,164.34,60.0]
[1717383348215,6.5007,164.39,164.34,60.0]
[1717383350621,6.5008,164.38,164.34,60.0]
[1717383350819,6.501,164.37,164.32,60.0]
[1717383351022,4.25,164.36,164.32,60.0]
[1717383352305,2.2509,164.38,164.32,60.0]
[1717383352507,4.25,164.37,164.34,60.0]
[1717383352725,6.5009,164.38,164.34,60.0]
[1717383353635,2.2509,164.38,164.34,60.0]
[1717383354135,6.5009,164.38,164.34,60.0]
[1717383354856,2.2509,164.38,164.34,60.0]
[1717383358730,6.2465,164.41,164.34,60.0]
[1717383358914,2.2507,164.39,164.34,60.0]
[1717383359119,6.5006,164.4,164.34,60.0]
[1717383361313,2.2506,164.4,164.34,60.0]
[1717383361517,6.5006,164.4,164.34,60.0]
[1717383363638,2.2506,164.4,164.34,60.0]
[1717383363841,6.5006,164.4,164.34,60.0]
[1717383364018,2.2506,164.4,164.34,60.0]
[1717383364221,6.5006,164.4,164.34,64.25]
[1717383364426,4.25,164.4,164.34,64.25]
[1717383364841,6.5007,164.4,164.34,60.0]
[1717383365059,4.25,164.38,164.34,60.0]
[1717383367144,4.25,164.38,164.32,60.0]
[1717383367375,4.5004,164.43,164.32,60.0]
[1717383367376,4.5007,164.42,164.32,60.0]
[1717383367644,4.25,164.37,164.32,60.0]
[1717383367835,2.2508,164.39,164.32,60.0]
[1717383368037,4.25,164.38,164.32,60.0]
[1717383368629,4.25,164.38,164.32,64.25]
[1717383369953,4.25,164.39,164.34,60.0]
[1717383370146,2.2505,164.41,164.34,60.0]
[1717383370455,2.2505,164.41,164.36,60.0]
[1717383370456,4.25,164.4,164.36,60.0]
[1717383375451,4.25,164.39,164.32,66.4567]
[1717383375757,4.25,164.39,164.32,102.9867]
[1717383375939,4.25,164.39,164.33,4.25]
[1717383377037,2.2506,164.4,164.33,4.25]
[1717383377248,4.25,164.39,164.33,4.25]
[1717383377444,4.25,164.39,164.33,64.25]
[1717383378067,4.25,164.39,164.33,60.0]
[1717383378352,4.25,164.39,164.33,66.084]
[1717383379064,6.5008,164.39,164.33,66.084]
[1717383379282,4.25,164.38,164.31,60.0]
[1717383379560,4.25,164.36,164.29,100.78]
[1717383380151,4.25,164.36,164.31,60.0]
[1717383380547,4.25,164.36,164.31,66.084]
[1717383380744,4.25,164.36,164.29,96.53]
[1717383380959,4.25,164.35,164.29,96.53]
[1717383381260,2.251,164.37,164.3,6.084]
[1717383381474,4.25,164.36,164.3,6.084]
[1717383384051,2.2507,164.39,164.32,60.0]
[1717383384573,2.2508,164.38,164.3,66.084]
[1717383385444,2.2507,164.39,164.3,66.084]
[1717383385762,4.25,164.36,164.3,66.084]
[1717383386481,4.25,164.37,164.3,70.334]
[1717383386974,4.25,164.37,164.3,66.084]
[1717383387265,2.2509,164.38,164.3,70.334]
[1717383387563,4.25,164.37,164.3,70.334]
[1717383388078,2.2507,164.39,164.32,60.0]
[1717383388256,4.25,164.37,164.32,60.0]
[1717383388567,2.2507,164.39,164.32,60.0]
[1717383388946,4.25,164.37,164.32,60.0]
[1717383389348,4.25,164.38,164.32,60.0]
[1717383395348,6.5008,164.38,164.32,60.0]
[1717383395556,2.2508,164.38,164.32,60.0]
[1717383395754,4.25,164.37,164.32,60.0]
[1717383397047,6.501,164.37,164.3,66.084]
[1717383397247,6.501,164.37,164.3,70.334]
[1717383397462,4.25,164.36,164.3,70.334]
[1717383399008,4.25,164.36,164.3,66.084]
[1717383399180,4.25,164.36,164.3,70.334]
[1717383399476,4.25,164.36,164.3,10.334]
[1717383400147,4.25,164.36,164.3,70.334]
[1717383400879,4.25,164.36,164.3,66.084]
[1717383401578,4.25,164.35,164.29,6.084]
[1717383402468,2.2511,164.36,164.29,6.084]
[1717383402670,4.25,164.34,164.29,6.084]
[1717383403055,20.7418,164.39,164.29,6.084]
[1717383403056,4.25,164.33,164.29,6.084]
[1717383405188,4.25,164.33,164.28,6.084]
[1717383405671,4.25,164.34,164.28,6.084]
[1717383408402,4.25,164.34,164.27,100.76]
[1717383408688,4.25,164.33,164.27,100.76]
[1717383409496,4.25,164.33,164.27,64.25]
[1717383410484,4.25,164.33,164.27,60.0]
[1717383410666,4.25,164.33,164.27,64.25]
[1717383411097,4.25,164.33,164.27,60.0]
[1717383412689,4.25,164.33,164.26,70.334]
[1717383413003,4.25,164.32,164.26,70.334]
[1717383415375,4.25,164.33,164.26,70.334]
[1717383417806,4.25,164.33,164.26,60.0]
[1717383418002,4.25,164.33,164.27,4.25]
[1717383418591,4.25,164.33,164.28,60.0]
[1717383419495,4.25,164.33,164.28,96.51]
[1717383419798,4.25,164.37,164.32,60.0]
[1717383419975,4.25,164.38,164.32,64.25]